Workbook

Sheet Relatório de Vendas de Produto
B1: Relatório de Vendas de Produto
B20: Produtos

Sheet Dados do Histórico
B1: Lista do Histórico de Preços de Produtos e Vendas
B3: Código do Produto | C3: Nome do Produto | D3: Data do Preço | E3: Preço de Retalho Por Unidade | F3: Preço a Granel Por Unidade* | G3: Unidades Vendidas (a retalho) | H3: Unidades Vendidas (a granel) | I3: Vendas Totais (n.º) | J3: Vendas Totais (€)
B4: 5 | C4: =IFERROR(IF(tabelaVendas[[#This Row],[Código do Produto]]<>"",VLOOKUP(tabelaVendas[Código do Produto],tabelaProdutos[[Código do Produto]:[Nome]],2,FALSE),""),"Código do Produto Desconhecido") -> Calções | D4: 2012-01-01 | E4: 20 | F4: 20 € | G4: 629 | H4: 1,254 | I4: =tabelaVendas[[#This Row],[Unidades Vendidas (a retalho)]]+tabelaVendas[[#This Row],[Unidades Vendidas (a granel)]] -> 1,883 | J4: =tabelaVendas[[#This Row],[Unidades Vendidas (a retalho)]]*tabelaVendas[[#This Row],[Preço de Retalho Por Unidade]]+tabelaVendas[[#This Row],[Unidades Vendidas (a granel)]]*tabelaVendas[[#This Row],[Preço a Granel Por Unidade*]] -> 37,660 €
B5: 1 | C5: =IFERROR(IF(tabelaVendas[[#This Row],[Código do Produto]]<>"",VLOOKUP(tabelaVendas[Código do Produto],tabelaProdutos[[Código do Produto]:[Nome]],2,FALSE),""),"Código do Produto Desconhecido") -> T-shirts | D5: 2012-01-01 | E5: 88 | F5: 54 € | G5: 734 | H5: 1,427 | I5: =tabelaVendas[[#This Row],[Unidades Vendidas (a retalho)]]+tabelaVendas[[#This Row],[Unidades Vendidas (a granel)]] -> 2,161 | J5: =tabelaVendas[[#This Row],[Unidades Vendidas (a retalho)]]*tabelaVendas[[#This Row],[Preço de Retalho Por Unidade]]+tabelaVendas[[#This Row],[Unidades Vendidas (a granel)]]*tabelaVendas[[#This Row],[Preço a Granel Por Unidade*]] -> 141,650 €
B6: 2 | C6: =IFERROR(IF(tabelaVendas[[#This Row],[Código do Produto]]<>"",VLOOKUP(tabelaVendas[Código do Produto],tabelaProdutos[[Código do Produto]:[Nome]],2,FALSE),""),"Código do Produto Desconhecido") -> Sandálias | D6: 2012-01-01 | E6: 70 | F6: 44 € | G6: 744 | H6: 1,043 | I6: =tabelaVendas[[#This Row],[Unidades Vendidas (a retalho)]]+tabelaVendas[[#This Row],[Unidades Vendidas (a granel)]] -> 1,787 | J6: =tabelaVendas[[#This Row],[Unidades Vendidas (a retalho)]]*tabelaVendas[[#This Row],[Preço de Retalho Por Unidade]]+tabelaVendas[[#This Row],[Unidades Vendidas (a granel)]]*tabelaVendas[[#This Row],[Preço a Granel Por Unidade*]] -> 97,972 €
B7: 3 | C7: =IFERROR(IF(tabelaVendas[[#This Row],[Código do Produto]]<>"",VLOOKUP(tabelaVendas[Código do Produto],tabelaProdutos[[Código do Produto]:[Nome]],2,FALSE),""),"Código do Produto Desconhecido") -> Chapéu de Sol | D7: 2012-01-01 | E7: 63 | F7: 44 € | G7: 681 | H7: 1,523 | I7: =tabelaVendas[[#This Row],[Unidades Vendidas (a retalho)]]+tabelaVendas[[#This Row],[Unidades Vendidas (a granel)]] -> 2,204 | J7: =tabelaVendas[[#This Row],[Unidades Vendidas (a retalho)]]*tabelaVendas[[#This Row],[Preço de Retalho Por Unidade]]+tabelaVendas[[#This Row],[Unidades Vendidas (a granel)]]*tabelaVendas[[#This Row],[Preço a Granel Por Unidade*]] -> 109,915 €
B8: 4 | C8: =IFERROR(IF(tabelaVendas[[#This Row],[Código do Produto]]<>"",VLOOKUP(tabelaVendas[Código do Produto],tabelaProdutos[[Código do Produto]:[Nome]],2,FALSE),""),"Código do Produto Desconhecido") -> Garrafas de água | D8: 2012-01-01 | E8: 35 | F8: 27 € | G8: 602 | H8: 1,822 | I8: =tabelaVendas[[#This Row],[Unidades Vendidas (a retalho)]]+tabelaVendas[[#This Row],[Unidades Vendidas (a granel)]] -> 2,424 | J8: =tabelaVendas[[#This Row],[Unidades Vendidas (a retalho)]]*tabelaVendas[[#This Row],[Preço de Retalho Por Unidade]]+tabelaVendas[[#This Row],[Unidades Vendidas (a granel)]]*tabelaVendas[[#This Row],[Preço a Granel Por Unidade*]] -> 70,264 €
B9: 1 | C9: =IFERROR(IF(tabelaVendas[[#This Row],[Código do Produto]]<>"",VLOOKUP(tabelaVendas[Código do Produto],tabelaProdutos[[Código do Produto]:[Nome]],2,FALSE),""),"Código do Produto Desconhecido") -> T-shirts | D9: 2012-02-01 | E9: 55 | F9: 44 € | G9: 678 | H9: 1,515 | I9: =tabelaVendas[[#This Row],[Unidades Vendidas (a retalho)]]+tabelaVendas[[#This Row],[Unidades Vendidas (a granel)]] -> 2,193 | J9: =tabelaVendas[[#This Row],[Unidades Vendidas (a retalho)]]*tabelaVendas[[#This Row],[Preço de Retalho Por Unidade]]+tabelaVendas[[#This Row],[Unidades Vendidas (a granel)]]*tabelaVendas[[#This Row],[Preço a Granel Por Unidade*]] -> 103,950 €
B10: 2 | C10: =IFERROR(IF(tabelaVendas[[#This Row],[Código do Produto]]<>"",VLOOKUP(tabelaVendas[Código do Produto],tabelaProdutos[[Código do Produto]:[Nome]],2,FALSE),""),"Código do Produto Desconhecido") -> Sandálias | D10: 2012-02-01 | E10: 83 | F10: 54 € | G10: 753 | H10: 1,005 | I10: =tabelaVendas[[#This Row],[Unidades Vendidas (a retalho)]]+tabelaVendas[[#This Row],[Unidades Vendidas (a granel)]] -> 1,758 | J10: =tabelaVendas[[#This Row],[Unidades Vendidas (a retalho)]]*tabelaVendas[[#This Row],[Preço de Retalho Por Unidade]]+tabelaVendas[[#This Row],[Unidades Vendidas (a granel)]]*tabelaVendas[[#This Row],[Preço a Granel Por Unidade*]] -> 116,769 €
B11: 3 | C11: =IFERROR(IF(tabelaVendas[[#This Row],[Código do Produto]]<>"",VLOOKUP(tabelaVendas[Código do Produto],tabelaProdutos[[Código do Produto]:[Nome]],2,FALSE),""),"Código do Produto Desconhecido") -> Chapéu de Sol | D11: 2012-02-01 | E11: 34 | F11: 34 € | G11: 986 | H11: 1,069 | I11: =tabelaVendas[[#This Row],[Unidades Vendidas (a retalho)]]+tabelaVendas[[#This Row],[Unidades Vendidas (a granel)]] -> 2,055 | J11: =tabelaVendas[[#This Row],[Unidades Vendidas (a retalho)]]*tabelaVendas[[#This Row],[Preço de Retalho Por Unidade]]+tabelaVendas[[#This Row],[Unidades Vendidas (a granel)]]*tabelaVendas[[#This Row],[Preço a Granel Por Unidade*]] -> 69,870 €
B12: 4 | C12: =IFERROR(IF(tabelaVendas[[#This Row],[Código do Produto]]<>"",VLOOKUP(tabelaVendas[Código do Produto],tabelaProdutos[[Código do Produto]:[Nome]],2,FALSE),""),"Código do Produto Desconhecido") -> Garrafas de água | D12: 2012-02-01 | E12: 35 | F12: 25 € | G12: 848 | H12: 1,211 | I12: =tabelaVendas[[#This Row],[Unidades Vendidas (a retalho)]]+tabelaVendas[[#This Row],[Unidades Vendidas (a granel)]] -> 2,059 | J12: =tabelaVendas[[#This Row],[Unidades Vendidas (a retalho)]]*tabelaVendas[[#This Row],[Preço de Retalho Por Unidade]]+tabelaVendas[[#This Row],[Unidades Vendidas (a granel)]]*tabelaVendas[[#This Row],[Preço a Granel Por Unidade*]] -> 59,955 €
B13: 5 | C13: =IFERROR(IF(tabelaVendas[[#This Row],[Código do Produto]]<>"",VLOOKUP(tabelaVendas[Código do Produto],tabelaProdutos[[Código do Produto]:[Nome]],2,FALSE),""),"Código do Produto Desconhecido") -> Calções | D13: 2012-02-01 | E13: 41 | F13: 38 € | G13: 980 | H13: 1,330 | I13: =tabelaVendas[[#This Row],[Unidades Vendidas (a retalho)]]+tabelaVendas[[#This Row],[Unidades Vendidas (a granel)]] -> 2,310 | J13: =tabelaVendas[[#This Row],[Unidades Vendidas (a retalho)]]*tabelaVendas[[#This Row],[Preço de Retalho Por Unidade]]+tabelaVendas[[#This Row],[Unidades Vendidas (a granel)]]*tabelaVendas[[#This Row],[Preço a Granel Por Unidade*]] -> 90,720 €
B14: 1 | C14: =IFERROR(IF(tabelaVendas[[#This Row],[Código do Produto]]<>"",VLOOKUP(tabelaVendas[Código do Produto],tabelaProdutos[[Código do Produto]:[Nome]],2,FALSE),""),"Código do Produto Desconhecido") -> T-shirts | D14: 2012-02-29 | E14: 27 | F14: 18 € | G14: 533 | H14: 1,936 | I14: =tabelaVendas[[#This Row],[Unidades Vendidas (a retalho)]]+tabelaVendas[[#This Row],[Unidades Vendidas (a granel)]] -> 2,469 | J14: =tabelaVendas[[#This Row],[Unidades Vendidas (a retalho)]]*tabelaVendas[[#This Row],[Preço de Retalho Por Unidade]]+tabelaVendas[[#This Row],[Unidades Vendidas (a granel)]]*tabelaVendas[[#This Row],[Preço a Granel Por Unidade*]] -> 49,239 €
B15: 2 | C15: =IFERROR(IF(tabelaVendas[[#This Row],[Código do Produto]]<>"",VLOOKUP(tabelaVendas[Código do Produto],tabelaProdutos[[Código do Produto]:[Nome]],2,FALSE),""),"Código do Produto Desconhecido") -> Sandálias | D15: 2012-02-29 | E15: 38 | F15: 28 € | G15: 952 | H15: 1,512 | I15: =tabelaVendas[[#This Row],[Unidades Vendidas (a retalho)]]+tabelaVendas[[#This Row],[Unidades Vendidas (a granel)]] -> 2,464 | J15: =tabelaVendas[[#This Row],[Unidades Vendidas (a retalho)]]*tabelaVendas[[#This Row],[Preço de Retalho Por Unidade]]+tabelaVendas[[#This Row],[Unidades Vendidas (a granel)]]*tabelaVendas[[#This Row],[Preço a Granel Por Unidade*]] -> 78,512 €
B16: 3 | C16: =IFERROR(IF(tabelaVendas[[#This Row],[Código do Produto]]<>"",VLOOKUP(tabelaVendas[Código do Produto],tabelaProdutos[[Código do Produto]:[Nome]],2,FALSE),""),"Código do Produto Desconhecido") -> Chapéu de Sol | D16: 2012-02-29 | E16: 92 | F16: 92 € | G16: 956 | H16: 1,266 | I16: =tabelaVendas[[#This Row],[Unidades Vendidas (a retalho)]]+tabelaVendas[[#This Row],[Unidades Vendidas (a granel)]] -> 2,222 | J16: =tabelaVendas[[#This Row],[Unidades Vendidas (a retalho)]]*tabelaVendas[[#This Row],[Preço de Retalho Por Unidade]]+tabelaVendas[[#This Row],[Unidades Vendidas (a granel)]]*tabelaVendas[[#This Row],[Preço a Granel Por Unidade*]] -> 204,424 €
B17: 4 | C17: =IFERROR(IF(tabelaVendas[[#This Row],[Código do Produto]]<>"",VLOOKUP(tabelaVendas[Código do Produto],tabelaProdutos[[Código do Produto]:[Nome]],2,FALSE),""),"Código do Produto Desconhecido") -> Garrafas de água | D17: 2012-02-29 | E17: 43 | F17: 36 € | G17: 952 | H17: 1,390 | I17: =tabelaVendas[[#This Row],[Unidades Vendidas (a retalho)]]+tabelaVendas[[#This Row],[Unidades Vendidas (a granel)]] -> 2,342 | J17: =tabelaVendas[[#This Row],[Unidades Vendidas (a retalho)]]*tabelaVendas[[#This Row],[Preço de Retalho Por Unidade]]+tabelaVendas[[#This Row],[Unidades Vendidas (a granel)]]*tabelaVendas[[#This Row],[Preço a Granel Por Unidade*]] -> 90,976 €
B18: 5 | C18: =IFERROR(IF(tabelaVendas[[#This Row],[Código do Produto]]<>"",VLOOKUP(tabelaVendas[Código do Produto],tabelaProdutos[[Código do Produto]:[Nome]],2,FALSE),""),"Código do Produto Desconhecido") -> Calções | D18: 2012-02-29 | E18: 98 | F18: 73 € | G18: 530 | H18: 1,452 | I18: =tabelaVendas[[#This Row],[Unidades Vendidas (a retalho)]]+tabelaVendas[[#This Row],[Unidades Vendidas (a granel)]] -> 1,982 | J18: =tabelaVendas[[#This Row],[Unidades Vendidas (a retalho)]]*tabelaVendas[[#This Row],[Preço de Retalho Por Unidade]]+tabelaVendas[[#This Row],[Unidades Vendidas (a granel)]]*tabelaVendas[[#This Row],[Preço a Granel Por Unidade*]] -> 157,936 €
B19: 1 | C19: =IFERROR(IF(tabelaVendas[[#This Row],[Código do Produto]]<>"",VLOOKUP(tabelaVendas[Código do Produto],tabelaProdutos[[Código do Produto]:[Nome]],2,FALSE),""),"Código do Produto Desconhecido") -> T-shirts | D19: 2012-03-31 | E19: 38 | F19: 28 € | G19: 973 | H19: 1,415 | I19: =tabelaVendas[[#This Row],[Unidades Vendidas (a retalho)]]+tabelaVendas[[#This Row],[Unidades Vendidas (a granel)]] -> 2,388 | J19: =tabelaVendas[[#This Row],[Unidades Vendidas (a retalho)]]*tabelaVendas[[#This Row],[Preço de Retalho Por Unidade]]+tabelaVendas[[#This Row],[Unidades Vendidas (a granel)]]*tabelaVendas[[#This Row],[Preço a Granel Por Unidade*]] -> 76,594 €
B20: 2 | C20: =IFERROR(IF(tabelaVendas[[#This Row],[Código do Produto]]<>"",VLOOKUP(tabelaVendas[Código do Produto],tabelaProdutos[[Código do Produto]:[Nome]],2,FALSE),""),"Código do Produto Desconhecido") -> Sandálias | D20: 2012-03-31 | E20: 50 | F20: 36 € | G20: 672 | H20: 1,105 | I20: =tabelaVendas[[#This Row],[Unidades Vendidas (a retalho)]]+tabelaVendas[[#This Row],[Unidades Vendidas (a granel)]] -> 1,777 | J20: =tabelaVendas[[#This Row],[Unidades Vendidas (a retalho)]]*tabelaVendas[[#This Row],[Preço de Retalho Por Unidade]]+tabelaVendas[[#This Row],[Unidades Vendidas (a granel)]]*tabelaVendas[[#This Row],[Preço a Granel Por Unidade*]] -> 73,380 €
B21: 3 | C21: =IFERROR(IF(tabelaVendas[[#This Row],[Código do Produto]]<>"",VLOOKUP(tabelaVendas[Código do Produto],tabelaProdutos[[Código do Produto]:[Nome]],2,FALSE),""),"Código do Produto Desconhecido") -> Chapéu de Sol | D21: 2012-03-31 | E21: 24 | F21: 23 € | G21: 769 | H21: 1,629 | I21: =tabelaVendas[[#This Row],[Unidades Vendidas (a retalho)]]+tabelaVendas[[#This Row],[Unidades Vendidas (a granel)]] -> 2,398 | J21: =tabelaVendas[[#This Row],[Unidades Vendidas (a retalho)]]*tabelaVendas[[#This Row],[Preço de Retalho Por Unidade]]+tabelaVendas[[#This Row],[Unidades Vendidas (a granel)]]*tabelaVendas[[#This Row],[Preço a Granel Por Unidade*]] -> 55,923 €
B22: 4 | C22: =IFERROR(IF(tabelaVendas[[#This Row],[Código do Produto]]<>"",VLOOKUP(tabelaVendas[Código do Produto],tabelaProdutos[[Código do Produto]:[Nome]],2,FALSE),""),"Código do Produto Desconhecido") -> Garrafas de água | D22: 2012-03-31 | E22: 72 | F22: 57 € | G22: 985 | H22: 1,848 | I22: =tabelaVendas[[#This Row],[Unidades Vendidas (a retalho)]]+tabelaVendas[[#This Row],[Unidades Vendidas (a granel)]] -> 2,833 | J22: =tabelaVendas[[#This Row],[Unidades Vendidas (a retalho)]]*tabelaVendas[[#This Row],[Preço de Retalho Por Unidade]]+tabelaVendas[[#This Row],[Unidades Vendidas (a granel)]]*tabelaVendas[[#This Row],[Preço a Granel Por Unidade*]] -> 176,256 €
B23: 5 | C23: =IFERROR(IF(tabelaVendas[[#This Row],[Código do Produto]]<>"",VLOOKUP(tabelaVendas[Código do Produto],tabelaProdutos[[Código do Produto]:[Nome]],2,FALSE),""),"Código do Produto Desconhecido") -> Calções | D23: 2012-03-31 | E23: 85 | F23: 43 € | G23: 721 | H23: 1,426 | I23: =tabelaVendas[[#This Row],[Unidades Vendidas (a retalho)]]+tabelaVendas[[#This Row],[Unidades Vendidas (a granel)]] -> 2,147 | J23: =tabelaVendas[[#This Row],[Unidades Vendidas (a retalho)]]*tabelaVendas[[#This Row],[Preço de Retalho Por Unidade]]+tabelaVendas[[#This Row],[Unidades Vendidas (a granel)]]*tabelaVendas[[#This Row],[Preço a Granel Por Unidade*]] -> 122,603 €
B24: 1 | C24: =IFERROR(IF(tabelaVendas[[#This Row],[Código do Produto]]<>"",VLOOKUP(tabelaVendas[Código do Produto],tabelaProdutos[[Código do Produto]:[Nome]],2,FALSE),""),"Código do Produto Desconhecido") -> T-shirts | D24: 2012-04-30 | E24: 91 | F24: 65 € | G24: 603 | H24: 1,226 | I24: =tabelaVendas[[#This Row],[Unidades Vendidas (a retalho)]]+tabelaVendas[[#This Row],[Unidades Vendidas (a granel)]] -> 1,829 | J24: =tabelaVendas[[#This Row],[Unidades Vendidas (a retalho)]]*tabelaVendas[[#This Row],[Preço de Retalho Por Unidade]]+tabelaVendas[[#This Row],[Unidades Vendidas (a granel)]]*tabelaVendas[[#This Row],[Preço a Granel Por Unidade*]] -> 134,563 €
B25: 2 | C25: =IFERROR(IF(tabelaVendas[[#This Row],[Código do Produto]]<>"",VLOOKUP(tabelaVendas[Código do Produto],tabelaProdutos[[Código do Produto]:[Nome]],2,FALSE),""),"Código do Produto Desconhecido") -> Sandálias | D25: 2012-04-30 | E25: 91 | F25: 55 € | G25: 892 | H25: 1,823 | I25: =tabelaVendas[[#This Row],[Unidades Vendidas (a retalho)]]+tabelaVendas[[#This Row],[Unidades Vendidas (a granel)]] -> 2,715 | J25: =tabelaVendas[[#This Row],[Unidades Vendidas (a retalho)]]*tabelaVendas[[#This Row],[Preço de Retalho Por Unidade]]+tabelaVendas[[#This Row],[Unidades Vendidas (a granel)]]*tabelaVendas[[#This Row],[Preço a Granel Por Unidade*]] -> 181,437 €
B26: 3 | C26: =IFERROR(IF(tabelaVendas[[#This Row],[Código do Produto]]<>"",VLOOKUP(tabelaVendas[Código do Produto],tabelaProdutos[[Código do Produto]:[Nome]],2,FALSE),""),"Código do Produto Desconhecido") -> Chapéu de Sol | D26: 2012-04-30 | E26: 42 | F26: 42 € | G26: 611 | H26: 1,181 | I26: =tabelaVendas[[#This Row],[Unidades Vendidas (a retalho)]]+tabelaVendas[[#This Row],[Unidades Vendidas (a granel)]] -> 1,792 | J26: =tabelaVendas[[#This Row],[Unidades Vendidas (a retalho)]]*tabelaVendas[[#This Row],[Preço de Retalho Por Unidade]]+tabelaVendas[[#This Row],[Unidades Vendidas (a granel)]]*tabelaVendas[[#This Row],[Preço a Granel Por Unidade*]] -> 75,264 €
B27: 4 | C27: =IFERROR(IF(tabelaVendas[[#This Row],[Código do Produto]]<>"",VLOOKUP(tabelaVendas[Código do Produto],tabelaProdutos[[Código do Produto]:[Nome]],2,FALSE),""),"Código do Produto Desconhecido") -> Garrafas de água | D27: 2012-04-30 | E27: 85 | F27: 43 € | G27: 530 | H27: 1,039 | I27: =tabelaVendas[[#This Row],[Unidades Vendidas (a retalho)]]+tabelaVendas[[#This Row],[Unidades Vendidas (a granel)]] -> 1,569 | J27: =tabelaVendas[[#This Row],[Unidades Vendidas (a retalho)]]*tabelaVendas[[#This Row],[Preço de Retalho Por Unidade]]+tabelaVendas[[#This Row],[Unidades Vendidas (a granel)]]*tabelaVendas[[#This Row],[Preço a Granel Por Unidade*]] -> 89,727 €
B28: 5 | C28: =IFERROR(IF(tabelaVendas[[#This Row],[Código do Produto]]<>"",VLOOKUP(tabelaVendas[Código do Produto],tabelaProdutos[[Código do Produto]:[Nome]],2,FALSE),""),"Código do Produto Desconhecido") -> Calções | D28: 2012-04-30 | E28: 82 | F28: 71 € | G28: 716 | H28: 1,249 | I28: =tabelaVendas[[#This Row],[Unidades Vendidas (a retalho)]]+tabelaVendas[[#This Row],[Unidades Vendidas (a granel)]] -> 1,965 | J28: =tabelaVendas[[#This Row],[Unidades Vendidas (a retalho)]]*tabelaVendas[[#This Row],[Preço de Retalho Por Unidade]]+tabelaVendas[[#This Row],[Unidades Vendidas (a granel)]]*tabelaVendas[[#This Row],[Preço a Granel Por Unidade*]] -> 147,391 €
B29: 1 | C29: =IFERROR(IF(tabelaVendas[[#This Row],[Código do Produto]]<>"",VLOOKUP(tabelaVendas[Código do Produto],tabelaProdutos[[Código do Produto]:[Nome]],2,FALSE),""),"Código do Produto Desconhecido") -> T-shirts | D29: 2012-05-14 | E29: 34 | F29: 31 € | G29: 850 | H29: 1,548 | I29: =tabelaVendas[[#This Row],[Unidades Vendidas (a retalho)]]+tabelaVendas[[#This Row],[Unidades Vendidas (a granel)]] -> 2,398 | J29: =tabelaVendas[[#This Row],[Unidades Vendidas (a retalho)]]*tabelaVendas[[#This Row],[Preço de Retalho Por Unidade]]+tabelaVendas[[#This Row],[Unidades Vendidas (a granel)]]*tabelaVendas[[#This Row],[Preço a Granel Por Unidade*]] -> 76,888 €
B30: 2 | C30: =IFERROR(IF(tabelaVendas[[#This Row],[Código do Produto]]<>"",VLOOKUP(tabelaVendas[Código do Produto],tabelaProdutos[[Código do Produto]:[Nome]],2,FALSE),""),"Código do Produto Desconhecido") -> Sandálias | D30: 2012-05-14 | E30: 64 | F30: 40 € | G30: 876 | H30: 1,663 | I30: =tabelaVendas[[#This Row],[Unidades Vendidas (a retalho)]]+tabelaVendas[[#This Row],[Unidades Vendidas (a granel)]] -> 2,539 | J30: =tabelaVendas[[#This Row],[Unidades Vendidas (a retalho)]]*tabelaVendas[[#This Row],[Preço de Retalho Por Unidade]]+tabelaVendas[[#This Row],[Unidades Vendidas (a granel)]]*tabelaVendas[[#This Row],[Preço a Granel Por Unidade*]] -> 122,584 €
B31: 3 | C31: =IFERROR(IF(tabelaVendas[[#This Row],[Código do Produto]]<>"",VLOOKUP(tabelaVendas[Código do Produto],tabelaProdutos[[Código do Produto]:[Nome]],2,FALSE),""),"Código do Produto Desconhecido") -> Chapéu de Sol | D31: 2012-05-14 | E31: 33 | F31: 30 € | G31: 881 | H31: 1,149 | I31: =tabelaVendas[[#This Row],[Unidades Vendidas (a retalho)]]+tabelaVendas[[#This Row],[Unidades Vendidas (a granel)]] -> 2,030 | J31: =tabelaVendas[[#This Row],[Unidades Vendidas (a retalho)]]*tabelaVendas[[#This Row],[Preço de Retalho Por Unidade]]+tabelaVendas[[#This Row],[Unidades Vendidas (a granel)]]*tabelaVendas[[#This Row],[Preço a Granel Por Unidade*]] -> 63,543 €
B32: 4 | C32: =IFERROR(IF(tabelaVendas[[#This Row],[Código do Produto]]<>"",VLOOKUP(tabelaVendas[Código do Produto],tabelaProdutos[[Código do Produto]:[Nome]],2,FALSE),""),"Código do Produto Desconhecido") -> Garrafas de água | D32: 2012-05-14 | E32: 29 | F32: 27 € | G32: 802 | H32: 1,548 | I32: =tabelaVendas[[#This Row],[Unidades Vendidas (a retalho)]]+tabelaVendas[[#This Row],[Unidades Vendidas (a granel)]] -> 2,350 | J32: =tabelaVendas[[#This Row],[Unidades Vendidas (a retalho)]]*tabelaVendas[[#This Row],[Preço de Retalho Por Unidade]]+tabelaVendas[[#This Row],[Unidades Vendidas (a granel)]]*tabelaVendas[[#This Row],[Preço a Granel Por Unidade*]] -> 65,054 €
B33: 5 | C33: =IFERROR(IF(tabelaVendas[[#This Row],[Código do Produto]]<>"",VLOOKUP(tabelaVendas[Código do Produto],tabelaProdutos[[Código do Produto]:[Nome]],2,FALSE),""),"Código do Produto Desconhecido") -> Calções | D33: 2013-12-11 | E33: 24 | F33: 15 € | G33: 824 | H33: 1,994 | I33: =tabelaVendas[[#This Row],[Unidades Vendidas (a retalho)]]+tabelaVendas[[#This Row],[Unidades Vendidas (a granel)]] -> 2,818 | J33: =tabelaVendas[[#This Row],[Unidades Vendidas (a retalho)]]*tabelaVendas[[#This Row],[Preço de Retalho Por Unidade]]+tabelaVendas[[#This Row],[Unidades Vendidas (a granel)]]*tabelaVendas[[#This Row],[Preço a Granel Por Unidade*]] -> 49,686 €

Sheet Lista de Preços
B1: Lista de Preços de Produtos
B3: Adventure Works
B4: Rua do Caranguejo, 235
B5: 1000-050 Lisboa
B6: Telefone: +351 21 555 0800
B7: FAX: +351 21 555 0801
B8: www.adventure-works.com | F8: Última atualização a 15-08-2013
B10: Código do Produto | C10: Nome | D10: Descrição | E10: Preço de Retalho Por Unidade | F10: Preço a Granel Por Unidade*
B11: 1 | C11: T-shirts | D11: Mantenha a sua frescura todo o verão nas nossas t-shirts de 100% algodão. | E11: 22 € | F11: 15.00 €
B12: 2 | C12: Sandálias | D12: Calce as nossas sandálias de sola de borracha e caminhe facilmente na areia a escaldar. | E12: 10 € | F12: 6.00 €
B13: 3 | C13: Chapéu de Sol | D13: Abrigue-se do sol debaixo do nosso chapéu de sol extra largo que bloqueia 96% de todos os raios UV nocivos. | E13: 30 € | F13: 20.00 €
B14: 4 | C14: Garrafas de água | D14: Hidrate-se com água à temperatura perfeita com a nossa garrafa isotérmica. | E14: 7 € | F14: 5.00 €
B15: 5 | C15: Calções | D15: Vá diretamente da água para dentro do seu carro com os nossos calções de nylon de secagem ultrarrápida. | E15: 15 € | F15: 8.00 €
F17: Contacte-nos para itens não constantes da lista.
F18: *O preço a granel aplica-se a quantidades superiores ou iguais a 12 unidades.

Sheet Tabela Dinâmica Nível de Preço (hidden)
B1: Tabela Dinâmica de Nível de Preço
B2: Esta folha deve permanecer oculta. Quaisquer alterações feitas na Tabela Dinâmica abaixo podem resultar em dados incorretos no Relatório de Vendas de Produto.
B3: Produto Selecionado: | C3: =IF(LEN(B5),B5,"Nenhuma") -> Sandálias
B4: Nome do Produto | C4: Preço de Retalho Por Unidade | D4: Soma das Vendas Totais (n.º)
B5: Sandálias | C5: 38 € | D5: 2464
C6: 50 € | D6: 1777
C7: 64 € | D7: 2539
C8: 70 € | D8: 1787
C9: 83 € | D9: 1758
C10: 91 € | D10: 2715

Sheet Tabela Dinâm. Tendência Vendas (hidden)
B1: Tabela Dinâmica de Tendência de Vendas
B2: Esta folha deve permanecer oculta. Quaisquer alterações feitas na Tabela Dinâmica abaixo podem resultar em dados incorretos no Relatório de Vendas de Produto.
B3: Soma das Vendas Totais (n.º) | C3: Nome do Produto
B4: Data do Preço | C4: Sandálias
B5: jan | C5: 1787
B6: fev | C6: 4222
B7: mar | C7: 1777
B8: abr | C8: 2715
B9: mai | C9: 2539
